bitfinex-derivatives/quotes_BTCF0:USTF0_20250703
["timestamp","ask_amount","ask_price","bid_price","bid_amount"]
[1751533341921,0.3849601,109470.0,109460.0,1.94516474]
[1751533343922,0.43965057,109470.0,109460.0,1.90870814]
[1751533344727,0.32965057,109470.0,109460.0,1.90870814]
[1751533348026,0.32965057,109470.0,109460.0,1.07494814]
[1751533348226,0.32965057,109470.0,109460.0,1.90858814]
[1751533349226,0.32965057,109470.0,109460.0,1.89788034]
[1751533351221,0.32965057,109470.0,109460.0,1.90858814]
[1751533353926,0.2749601,109470.0,109460.0,1.94504474]
[1751533355529,0.2749601,109470.0,109460.0,1.90858814]
[1751533358729,0.2749601,109470.0,109460.0,1.89788034]
[1751533361232,0.2749601,109470.0,109460.0,1.90858813]
[1751533362030,0.2759601,109470.0,109460.0,1.90858813]
[1751533362225,0.2759601,109470.0,109460.0,1.90658813]
[1751533362432,0.6479601,109470.0,109460.0,1.90658813]
[1751533363934,0.6479601,109470.0,109460.0,1.94304473]
[1751533365030,0.6459601,109470.0,109460.0,1.94304473]
[1751533365233,0.6479601,109470.0,109460.0,1.94304473]
[1751533368038,0.6479601,109470.0,109460.0,0.61401819]
[1751533368337,0.89565337,109470.0,109460.0,0.75780367]
[1751533368637,0.99095337,109470.0,109460.0,1.59140367]
[1751533369342,0.99095337,109470.0,109460.0,0.75780367]
[1751533372252,0.99095337,109470.0,109460.0,0.72134707]
[1751533373545,0.99095337,109470.0,109460.0,0.4736538]
[1751533373843,0.99095337,109470.0,109460.0,0.72134707]
[1751533375545,0.7432601,109470.0,109460.0,0.72134707]
[1751533375745,0.99095337,109470.0,109460.0,0.72134707]
[1751533375942,0.7432601,109470.0,109460.0,0.72134707]
[1751533376244,0.99095337,109470.0,109460.0,0.72134707]
[1751533378049,0.99095337,109470.0,109460.0,0.4736538]
[1751533378241,0.99095337,109470.0,109460.0,0.72134707]
[1751533381249,0.99095337,109470.0,109460.0,0.75780367]
[1751533382354,0.99095337,109470.0,109460.0,0.5101104]
[1751533382548,0.99095337,109470.0,109460.0,0.75780367]
[1751533383148,0.99095337,109470.0,109460.0,0.3274566]
[1751533383350,0.99095337,109470.0,109460.0,0.72134707]
[1751533383950,1.04564384,109470.0,109460.0,0.72134707]
[1751533384855,1.04564384,109470.0,109460.0,0.4736538]
[1751533385052,1.04564384,109470.0,109460.0,0.72134707]
[1751533385554,0.79795057,109470.0,109460.0,0.72134707]
[1751533385954,1.04564384,109470.0,109460.0,0.72134707]
[1751533387555,1.04564384,109470.0,109460.0,0.4736538]
[1751533387753,1.04564384,109470.0,109460.0,0.72134707]
[1751533390759,1.04564384,109470.0,109460.0,0.4736538]
[1751533390961,1.04564384,109470.0,109460.0,0.72134707]
[1751533391966,1.04564384,109470.0,109460.0,0.96904034]
[1751533392663,1.04564384,109470.0,109460.0,0.72134707]
[1751533393163,0.79795057,109470.0,109460.0,0.72134707]
[1751533393465,1.04564384,109470.0,109460.0,0.4736538]
[1751533393665,1.04564384,109470.0,109460.0,0.72134707]
[1751533393962,0.99095337,109470.0,109460.0,0.72134707]
[1751533394667,0.99095337,109470.0,109460.0,0.4736538]
[1751533394861,0.99095337,109470.0,109460.0,0.72134707]
[1751533396365,0.7432601,109470.0,109460.0,0.4736538]
[1751533396566,0.99101337,109470.0,109460.0,0.72134707]
[1751533397068,0.7433201,109470.0,109460.0,0.72134707]
[1751533397268,0.99101337,109470.0,109460.0,0.72134707]
[1751533400262,0.1826542,109460.0,109450.0,0.8184124]
[1751533400466,0.88524747,109460.0,109450.0,0.86610567]
[1751533400870,0.88524747,109460.0,109450.0,0.81142077]
[1751533401566,0.88624747,109460.0,109450.0,0.81242077]
[1751533402072,0.88624747,109460.0,109450.0,0.77596417]
[1751533402571,0.88624747,109460.0,109450.0,0.74306417]
[1751533402866,0.88624747,109460.0,109450.0,0.56039327]
[1751533403069,0.88624747,109460.0,109450.0,0.52869327]
[1751533403274,0.88724747,109460.0,109450.0,0.71136417]
[1751533403566,0.88724747,109460.0,109450.0,0.52869327]
[1751533404973,0.88724747,109460.0,109450.0,0.71136417]
[1751533405174,0.88730747,109460.0,109450.0,0.71136417]
[1751533405373,0.6396142,109460.0,109450.0,0.71136417]
[1751533405774,0.88730747,109460.0,109450.0,0.71136417]
[1751533406877,1.72086747,109460.0,109450.0,0.71136417]
[1751533407277,1.72286747,109460.0,109450.0,0.71136417]
[1751533409671,1.72286747,109460.0,109450.0,0.4636709]
[1751533409872,0.88930747,109460.0,109450.0,0.52869327]
[1751533410178,1.72286747,109460.0,109450.0,0.71136417]
[1751533411672,1.72286747,109460.0,109450.0,0.281]
[1751533411878,1.4751742,109460.0,109450.0,0.52869327]
[1751533412076,1.72286747,109460.0,109450.0,0.71136417]
[1751533412676,1.72286747,109460.0,109450.0,0.4636709]
[1751533412876,1.72286747,109460.0,109450.0,0.71136417]
[1751533413079,1.97056074,109460.0,109450.0,0.52869327]
[1751533413270,1.97056074,109460.0,109450.0,0.71136417]
[1751533413471,1.97056074,109460.0,109450.0,0.52869327]
[1751533414171,1.4751742,109460.0,109450.0,0.71136417]
[1751533414377,1.72286747,109460.0,109450.0,0.4636709]
[1751533414679,1.72286747,109460.0,109450.0,0.71136417]
[1751533415871,1.72280747,109460.0,109450.0,0.71136417]
[1751533416477,1.97050074,109460.0,109450.0,0.71136417]
[1751533416679,1.97050074,109460.0,109450.0,0.52869327]
[1751533417680,1.97050074,109460.0,109450.0,0.71136417]
[1751533417880,1.97050074,109460.0,109450.0,0.281]
[1751533418068,1.97050074,109460.0,109450.0,0.4636709]
[1751533418580,1.97050074,109460.0,109450.0,0.71136417]
[1751533418780,1.97050074,109460.0,109450.0,0.4636709]
[1751533419482,1.72280747,109460.0,109450.0,0.4636709]
[1751533419674,1.72280747,109460.0,109450.0,0.71136417]
[1751533421082,1.4751142,109460.0,109450.0,0.71136417]
[1751533421271,1.72280747,109460.0,109450.0,0.71136417]
[1751533422981,1.72280747,109460.0,109450.0,0.52869327]
[1751533423684,1.72280747,109460.0,109450.0,0.71136417]
[1751533426788,1.72280747,109460.0,109450.0,0.53940299]
[1751533427086,1.72270747,109460.0,109450.0,0.53940299]
[1751533427486,1.72270747,109460.0,109450.0,0.72207389]
[1751533428185,0.88914747,109460.0,109450.0,0.72207389]
[1751533428386,1.72282747,109460.0,109450.0,0.72207389]
[1751533428585,1.72282747,109460.0,109450.0,0.81787389]
[1751533428889,1.72282747,109460.0,109450.0,0.78777389]
[1751533429383,1.72282747,109460.0,109450.0,0.54008062]
[1751533429685,1.72282747,109460.0,109450.0,0.78777389]
[1751533431590,1.72282747,109460.0,109450.0,0.60510299]
[1751533431790,1.72282747,109460.0,109450.0,0.78777389]
[1751533433992,1.77751794,109460.0,109450.0,0.60510299]
[1751533434292,1.77751794,109460.0,109450.0,0.59439327]
[1751533435195,1.77751794,109460.0,109450.0,0.77706417]
[1751533438294,1.77751794,109460.0,109450.0,0.59439327]
[1751533438797,0.94383794,109460.0,109450.0,0.77706387]
[1751533439097,1.77747794,109460.0,109450.0,0.77706387]
[1751533440707,1.77747794,109460.0,109450.0,0.78777341]
[1751533441407,1.52978467,109460.0,109450.0,0.78777341]
[1751533441706,1.77747794,109460.0,109450.0,0.78777341]
[1751533443908,1.72278747,109460.0,109450.0,0.78777341]
[1751533445004,1.72278747,109460.0,109450.0,0.60510281]
[1751533445808,1.72278747,109460.0,109450.0,0.78777341]
[1751533446098,1.4750942,109460.0,109450.0,0.78777341]
[1751533446305,1.72278747,109460.0,109450.0,0.78777341]
[1751533446903,1.72278747,109460.0,109450.0,0.77706387]
[1751533447108,1.79272058,109460.0,109450.0,0.77706387]
[1751533447406,1.54502731,109460.0,109450.0,0.77706387]
[1751533447807,1.79272058,109460.0,109450.0,0.77706387]
[1751533449510,1.54502731,109460.0,109450.0,0.77706387]
[1751533449809,1.79272058,109460.0,109450.0,0.77706387]
[1751533450516,1.77747794,109460.0,109450.0,0.77706387]
[1751533451509,1.79268336,109460.0,109450.0,0.77706387]
[1751533453413,1.79268336,109460.0,109450.0,0.5293706]
[1751533453608,1.79268336,109460.0,109450.0,0.52869327]
[1751533453810,1.79268336,109460.0,109450.0,0.71136447]
[1751533454109,1.79268336,109460.0,109450.0,0.52869327]
[1751533455213,1.79268336,109460.0,109450.0,0.29170954]
[1751533455416,1.79268336,109460.0,109450.0,0.53940281]
[1751533458413,1.79268336,109460.0,109450.0,0.52869327]
[1751533464017,1.73799289,109460.0,109450.0,0.52869327]
[1751533465716,0.59435962,109460.0,109450.0,0.71136457]
[1751533465917,1.67561289,109460.0,109450.0,0.80656457]
[1751533468722,1.67561289,109460.0,109450.0,0.5588713]
[1751533468922,1.67561289,109460.0,109450.0,0.62389327]
[1751533470123,1.67561289,109460.0,109450.0,0.80656437]
[1751533472122,1.42791962,109460.0,109450.0,0.80656437]
[1751533472329,1.67561289,109460.0,109450.0,0.80656437]
[1751533474025,1.73030336,109460.0,109450.0,0.80656437]
[1751533475334,1.73030336,109460.0,109450.0,0.62389327]
[1751533475526,1.73030336,109460.0,109450.0,0.80656437]
[1751533477432,1.76330336,109460.0,109450.0,0.80656437]
[1751533481540,1.74809794,109460.0,109450.0,0.80656437]
[1751533481842,1.76333615,109460.0,109450.0,0.80656437]
[1751533483938,1.70864568,109460.0,109450.0,0.80656437]
[1751533484842,1.72510747,109460.0,109450.0,0.80656437]
[1751533485633,1.74013589,109460.0,109450.0,0.80656437]
[1751533487142,1.81305652,109460.0,109450.0,0.80656437]
[1751533487341,1.74013589,109460.0,109450.0,0.80656437]
[1751533489147,0.90657589,109460.0,109450.0,0.80656437]
[1751533489345,1.67531589,109460.0,109450.0,0.80656437]
[1751533489544,0.58418262,109460.0,109450.0,0.80656437]
[1751533489743,0.25634245,109460.0,109450.0,0.80656437]
[1751533489932,0.25634245,109460.0,109450.0,1.40425764]
[1751533490137,0.25634245,109460.0,109450.0,1.05425764]
[1751533490339,0.20168292,109460.0,109450.0,1.40425764]
[1751533490740,0.20168292,109460.0,109450.0,1.05425764]
[1751533491040,0.20168292,109460.0,109450.0,1.07425764]
[1751533491240,0.20168292,109460.0,109450.0,1.40425764]
[1751533492348,0.20168292,109460.0,109450.0,2.23769764]
[1751533492533,0.28927506,109470.0,109460.0,0.1826545]
[1751533492740,0.28927506,109470.0,109460.0,1.38304104]
[1751533493240,0.28927506,109470.0,109460.0,1.42304104]
[1751533493742,0.28927506,109470.0,109460.0,1.04304104]
[1751533494749,0.29227506,109470.0,109460.0,1.04404104]
[1751533495052,0.29527506,109470.0,109460.0,1.04404104]
[1751533495442,0.29527506,109470.0,109460.0,1.41404104]
[1751533496349,0.24961286,109470.0,109460.0,1.41404104]
[1751533497849,0.24961286,109470.0,109460.0,1.04404104]
[1751533498052,0.24961286,109470.0,109460.0,1.41404104]
[1751533503455,0.24950395,109470.0,109460.0,1.41404104]
[1751533506053,0.0456519,109490.0,109470.0,0.2739333]
[1751533506357,0.1826224,109480.0,109470.0,1.5461725]
[1751533506550,0.1826224,109480.0,109470.0,1.9318304]
[1751533506954,0.1826224,109480.0,109470.0,1.9154491]
[1751533507249,0.3055248,109490.0,109480.0,0.1826211]
[1751533507456,0.3195514,109500.0,109490.0,0.1826044]
[1751533507648,0.3539013,109500.0,109490.0,0.81729767]
[1751533508354,0.2739013,109500.0,109490.0,0.81729767]
[1751533509551,0.3376013,109500.0,109490.0,0.81729767]
[1751533511259,0.3446013,109500.0,109490.0,0.81729767]
[1751533511450,0.35945663,109500.0,109490.0,0.81729767]
[1751533512948,0.3446013,109500.0,109490.0,0.81729767]
[1751533513149,0.3446013,109500.0,109490.0,0.8337047]
[1751533513449,0.3506013,109500.0,109490.0,0.8347047]
[1751533520264,0.3506013,109500.0,109490.0,0.58701143]
[1751533520561,0.3506013,109500.0,109490.0,0.52301143]
[1751533520763,0.3506013,109500.0,109490.0,0.7707047]
[1751533521153,0.59829457,109500.0,109490.0,0.7707047]
[1751533521655,0.3049516,109500.0,109490.0,1.0907047]
[1751533521956,0.2593028,109500.0,109490.0,0.8021047]
[1751533522159,0.2593028,109500.0,109490.0,1.40979797]
[1751533522160,0.013,109500.0,109490.0,1.40979797]
[1751533523165,0.013,109500.0,109490.0,0.91441143]
[1751533523366,0.013,109500.0,109490.0,1.40979797]
[1751533523662,0.0739907,109510.0,109500.0,0.1825877]
[1751533523963,0.1825711,109510.0,109500.0,1.37277424]
[1751533524360,0.47225323,109520.0,109510.0,0.1825711]
[1751533524561,0.81225323,109520.0,109510.0,0.73026437]
[1751533525660,0.89387933,109520.0,109510.0,0.73126437]
[1751533526267,1.1415726,109520.0,109510.0,0.73126437]
[1751533526460,0.89387933,109520.0,109510.0,0.73126437]
[1751533526660,1.1415726,109520.0,109510.0,0.73126437]
[1751533527067,1.1445726,109520.0,109510.0,0.73126437]
[1751533527565,1.1435726,109520.0,109510.0,0.73126437]
[1751533530467,0.89587933,109520.0,109510.0,0.73126437]
[1751533530767,0.89287933,109520.0,109510.0,0.73126437]
[1751533533070,1.1405726,109520.0,109510.0,0.73126437]
[1751533533266,0.89287933,109520.0,109510.0,0.73126437]
[1751533533666,0.84723713,109520.0,109510.0,0.73126437]
[1751533533866,0.41123713,109520.0,109510.0,1.18816437]
[1751533534062,0.5264773,109520.0,109510.0,0.93816437]
[1751533534258,0.5264773,109520.0,109510.0,0.82816437]
[1751533535169,0.5264773,109520.0,109510.0,1.13816437]
[1751533535370,0.4351947,109520.0,109510.0,1.13816437]
[1751533535570,0.4351805,109520.0,109510.0,0.92816437]
[1751533535758,0.4351805,109520.0,109510.0,1.07585764]
[1751533535959,0.0826261,109520.0,109510.0,1.39585764]
[1751533536159,0.009,109520.0,109510.0,1.98084437]
[1751533536364,0.009,109520.0,109510.0,2.22853764]
[1751533536566,0.009,109520.0,109510.0,2.42801349]
[1751533536766,0.009,109520.0,109510.0,2.46447009]
[1751533537269,0.009,109520.0,109510.0,2.42801349]
[1751533537770,0.009,109520.0,109510.0,2.18023504]
[1751533538166,0.006,109520.0,109510.0,2.17923504]
[1751533538771,0.006,109520.0,109510.0,1.99661104]
[1751533539271,0.005,109520.0,109510.0,1.97975919]
[1751533540175,0.005,109520.0,109510.0,1.99612101]
[1751533542773,0.005,109520.0,109510.0,1.97975919]
[1751533543175,0.005,109520.0,109510.0,1.99620586]
[1751533544275,0.005,109520.0,109510.0,1.99608586]
[1751533545577,0.005,109520.0,109510.0,1.16352586]
[1751533545778,0.005,109520.0,109510.0,1.99608586]
[1751533546375,0.005,109520.0,109510.0,1.99604586]
[1751533554480,0.005,109520.0,109510.0,2.28854586]
[1751533558185,0.005,109520.0,109510.0,2.34323076]
[1751533559185,0.005,109520.0,109510.0,2.28854586]
[1751533559387,0.1875544,109520.0,109510.0,2.28842586]
[1751533559577,0.2186544,109520.0,109510.0,2.28842586]
[1751533560085,0.1875544,109520.0,109510.0,2.28842586]
[1751533560285,0.20900715,109520.0,109510.0,2.28842586]
[1751533560680,0.1875544,109520.0,109510.0,2.34311076]
[1751533561788,0.1875544,109520.0,109510.0,2.59074903]
[1751533562480,0.005,109520.0,109510.0,2.59074903]
[1751533563191,0.40794752,109540.0,109530.0,0.1825377]
[1751533563379,0.65221304,109540.0,109530.0,0.70016088]
[1751533563686,0.60657864,109540.0,109530.0,0.70016088]
[1751533564489,0.61057864,109540.0,109530.0,0.70116088]
[1751533565490,0.48057864,109540.0,109530.0,0.70116088]
[1751533565985,0.48057864,109540.0,109530.0,0.70112005]
[1751533566180,0.48357864,109540.0,109530.0,0.70112005]
[1751533566890,0.48357864,109540.0,109530.0,0.71037513]
[1751533568491,0.48357864,109540.0,109530.0,0.78037513]
[1751533572989,0.48357864,109540.0,109530.0,0.79037513]
[1751533573987,0.53833847,109540.0,109530.0,0.79037513]
[1751533575194,0.48357864,109540.0,109530.0,0.79037513]
[1751533575388,0.53833847,109540.0,109530.0,0.79037513]
[1751533575891,0.48357864,109540.0,109530.0,0.79037513]
[1751533576093,0.53833847,109540.0,109530.0,0.79037513]
[1751533576495,0.53833847,109540.0,109530.0,0.54279278]
[1751533576695,0.53833847,109540.0,109530.0,0.79037513]
[1751533579192,0.53833847,109540.0,109530.0,0.54279278]
[1751533579497,0.39077864,109540.0,109530.0,1.03037513]
[1751533579698,0.45427864,109540.0,109530.0,1.03037513]
[1751533580092,0.48657864,109540.0,109530.0,1.03037513]
[1751533580293,0.44094474,109540.0,109530.0,1.03037513]
[1751533581792,0.44098916,109540.0,109530.0,0.79037513]
[1751533587807,0.44098916,109540.0,109530.0,0.79036614]
[1751533588507,0.44098916,109540.0,109530.0,0.88476614]
[1751533589008,0.44098916,109540.0,109530.0,1.1323395]
[1751533589310,0.21282306,109540.0,109530.0,1.3823395]
[1751533589506,0.33051083,109560.0,109550.0,0.1825044]
[1751533589808,0.73511083,109560.0,109550.0,0.74007776]
[1751533590199,0.69535166,109560.0,109550.0,0.74007776]
[1751533590801,0.69935166,109560.0,109550.0,0.74007776]
[1751533591809,0.70335166,109560.0,109550.0,0.73999692]
[1751533592111,0.77622884,109560.0,109550.0,0.73999692]
[1751533594413,0.71372884,109560.0,109550.0,1.11999692]
[1751533594607,0.28036554,109560.0,109550.0,0.92579692]
[1751533594911,0.28036554,109560.0,109550.0,1.14579692]
[1751533595113,0.28036554,109560.0,109550.0,0.83579692]
[1751533595313,0.28036554,109560.0,109550.0,1.15579692]
[1751533595610,0.02500066,109560.0,109550.0,1.15579692]
[1751533596613,0.01,109560.0,109550.0,1.15579692]
[1751533597313,0.4142163,109580.0,109570.0,0.1824711]
[1751533597508,0.7442163,109580.0,109570.0,0.73996362]
[1751533597709,0.652983,109580.0,109570.0,0.73996362]
[1751533597903,0.5429686,109580.0,109570.0,1.04996362]
[1751533598108,0.5429544,109580.0,109570.0,1.14586362]
[1751533598615,0.3324544,109580.0,109570.0,0.90586362]
[1751533598908,0.3324544,109580.0,109570.0,1.21586362]
[1751533599214,0.3374544,109580.0,109570.0,1.21586362]
[1751533599617,0.1874544,109580.0,109570.0,0.90586362]
[1751533599818,0.1874544,109580.0,109570.0,1.16586362]
[1751533600117,0.1934544,109580.0,109570.0,1.16586362]
[1751533601608,0.21483293,109580.0,109570.0,1.16586362]
[1751533601811,0.21483293,109580.0,109570.0,0.90586362]
[1751533602010,0.21483293,109580.0,109570.0,1.20586362]
[1751533603113,0.03237853,109580.0,109570.0,1.21488242]
[1751533603514,0.03237853,109580.0,109570.0,1.2311589]
[1751533603721,0.011,109580.0,109570.0,1.2311589]
[1751533604210,0.007,109580.0,109570.0,1.2311589]
[1751533604613,0.004,109580.0,109570.0,1.2311589]
[1751533606218,0.02538363,109580.0,109570.0,1.2311589]
[1751533606518,0.004,109580.0,109570.0,1.2311589]
[1751533606714,0.02537946,109580.0,109570.0,1.2311589]
[1751533609220,0.20783386,109580.0,109570.0,1.2311589]
[1751533610726,0.20783386,109580.0,109570.0,0.98366638]
[1751533610919,0.20783386,109580.0,109570.0,1.2311589]
[1751533614029,0.02537946,109580.0,109570.0,1.2311589]
[1751533614824,0.20783396,109580.0,109570.0,1.2311589]
[1751533615129,0.02537946,109580.0,109570.0,1.2311589]
[1751533615724,0.004,109580.0,109570.0,1.2311589]
[1751533615924,0.02540558,109580.0,109570.0,1.2311589]
[1751533616535,0.20786008,109580.0,109570.0,1.2311589]
[1751533616732,0.02540558,109580.0,109570.0,1.2311589]
[1751533621037,0.20785998,109580.0,109570.0,1.2311589]
[1751533621730,0.20785998,109580.0,109570.0,0.98366638]
[1751533621931,0.02540558,109580.0,109570.0,1.2311589]
[1751533622838,0.02540558,109580.0,109570.0,1.23123368]
[1751533624635,0.20785998,109580.0,109570.0,1.23123368]
[1751533624936,0.1864544,109580.0,109570.0,1.23123368]
[1751533625636,0.20791668,109580.0,109570.0,1.23123368]
[1751533625841,0.02546228,109580.0,109570.0,1.23123368]
[1751533626437,0.02546228,109580.0,109570.0,1.21488242]
[1751533626642,0.02546228,109580.0,109570.0,1.23133542]
[1751533627830,0.02546228,109580.0,109570.0,1.47854852]
[1751533628443,0.20791678,109580.0,109570.0,2.31026852]
[1751533628944,0.02546228,109580.0,109570.0,2.31026852]
[1751533629442,0.20791668,109580.0,109570.0,2.31026852]
[1751533629842,0.02546228,109580.0,109570.0,2.31026852]
[1751533630644,0.02546228,109580.0,109570.0,2.36495342]
[1751533632434,0.20791678,109580.0,109570.0,2.36495342]
[1751533632848,0.02546228,109580.0,109570.0,2.36495342]
[1751533635949,0.02546228,109580.0,109570.0,2.31026852]
[1751533638454,0.02446228,109580.0,109570.0,2.31026852]
[1751533638755,0.02146228,109580.0,109570.0,2.31026852]
[1751533638951,0.02246228,109580.0,109570.0,2.31026852]
[1751533640656,0.02246228,109580.0,109570.0,2.36495342]
[1751533641160,0.20491678,109580.0,109570.0,2.36491342]
[1751533643762,0.20491678,109580.0,109570.0,2.36487342]
[1751533644058,0.20491678,109580.0,109570.0,2.31018852]
[1751533646159,0.20491678,109580.0,109570.0,1.8154829]
[1751533646361,0.20491678,109580.0,109570.0,2.31018852]
[1751533652150,0.20491678,109580.0,109570.0,0.456453]
[1751533652351,1.1140224,109580.0,109570.0,0.5089241]
[1751533652564,0.92142942,109580.0,109570.0,0.75627691]
[1751533653462,0.92142942,109580.0,109570.0,1.58787691]
[1751533653761,0.70996714,109580.0,109570.0,1.58787691]
[1751533654063,0.65520731,109580.0,109570.0,1.62435789]
[1751533654958,0.65520731,109580.0,109570.0,1.58787691]
[1751533655263,0.65520731,109580.0,109570.0,1.6243513]
[1751533655564,0.65520731,109580.0,109570.0,1.58787691]
[1751533656261,0.65520731,109580.0,109570.0,0.75627691]
[1751533656463,0.52520731,109580.0,109570.0,0.75627691]
[1751533656664,0.86520731,109580.0,109570.0,1.6243113]
[1751533657463,0.86520731,109580.0,109570.0,1.3404841]
[1751533657763,0.86520731,109580.0,109570.0,1.58783691]
[1751533658463,0.86520731,109580.0,109570.0,0.75627691]
[1751533661763,0.6178545,109580.0,109570.0,0.75627691]
[1751533661955,0.86520731,109580.0,109570.0,0.75627691]
[1751533663561,0.52520731,109580.0,109570.0,0.75627691]
[1751533663763,0.60520731,109580.0,109570.0,0.75627691]
[1751533663964,0.60520731,109580.0,109570.0,0.5089241]
[1751533664167,0.60520731,109580.0,109570.0,0.75627691]
[1751533664765,0.3578545,109580.0,109570.0,0.75627691]
[1751533664964,0.3578545,109580.0,109570.0,1.07627691]
[1751533665666,0.3578545,109580.0,109570.0,1.10627691]
[1751533672977,0.3578545,109580.0,109570.0,1.13847691]
[1751533674270,0.3578545,109580.0,109570.0,1.19957691]
[1751533674879,0.60520731,109580.0,109570.0,0.9522241]
[1751533675075,0.60520731,109580.0,109570.0,1.13737691]
[1751533678473,0.60520731,109580.0,109570.0,1.12092391]
[1751533678673,0.60520731,109580.0,109570.0,1.15312391]
[1751533680378,0.60520731,109580.0,109570.0,0.80312391]
[1751533680570,0.86520731,109580.0,109570.0,0.73982391]
[1751533682384,0.86520731,109580.0,109570.0,0.7762983]
[1751533683379,0.86520731,109580.0,109570.0,0.8081983]
[1751533684385,0.86520731,109580.0,109570.0,0.8708983]
[1751533685281,0.52520731,109580.0,109570.0,0.8708983]
[1751533685487,0.61520731,109580.0,109570.0,0.8708983]
[1751533685690,0.3678545,109580.0,109570.0,0.8708983]
[1751533685878,0.61520731,109580.0,109570.0,0.8708983]
[1751533689391,0.61520731,109580.0,109570.0,0.83442391]
[1751533690290,0.3678545,109580.0,109570.0,0.83442391]
[1751533690591,0.61520731,109580.0,109570.0,0.83442391]
[1751533690792,0.62520731,109580.0,109570.0,0.83442391]
[1751533694088,0.67993612,109580.0,109570.0,0.83442391]
[1751533697998,0.43258331,109580.0,109570.0,0.83442391]
[1751533698200,0.67993612,109580.0,109570.0,0.83442391]
[1751533700104,0.91993612,109580.0,109570.0,0.83442391]
[1751533700893,0.44258331,109580.0,109570.0,0.83442391]
[1751533701099,0.68993612,109580.0,109570.0,0.83442391]
[1751533704111,0.63520731,109580.0,109570.0,0.8708983]
[1751533707815,0.3878545,109580.0,109570.0,0.8708983]
[1751533708015,0.63520731,109580.0,109570.0,0.8708983]
[1751533710023,0.3878545,109580.0,109570.0,0.8708983]
[1751533710317,0.63520731,109580.0,109570.0,0.8708983]
[1751533714313,0.52520731,109580.0,109570.0,0.8708983]
[1751533714616,0.85520731,109580.0,109570.0,0.8708983]
[1751533715523,0.85520731,109580.0,109570.0,0.87092635]
[1751533716920,1.10256012,109580.0,109570.0,0.52897344]
[1751533717216,1.15732868,109580.0,109570.0,0.31]
[1751533717423,0.6078545,109580.0,109570.0,0.492471]
[1751533717624,1.10256012,109580.0,109570.0,0.73982381]
[1751533718121,0.90997587,109580.0,109570.0,0.73982381]
[1751533718322,0.85520731,109580.0,109570.0,0.73982381]
[1751533719323,1.10256012,109580.0,109570.0,0.73982381]
[1751533721223,0.85520731,109580.0,109570.0,0.73982381]
[1751533722722,1.10256012,109580.0,109570.0,0.73982381]
[1751533725725,0.6078545,109580.0,109570.0,0.73982381]
[1751533725929,1.10256012,109580.0,109570.0,0.73982381]
[1751533726433,1.10256012,109580.0,109570.0,0.492471]
[1751533735737,1.10536012,109580.0,109570.0,0.492471]
[1751533736737,1.11466706,109580.0,109570.0,0.492471]
[1751533739438,1.10536012,109580.0,109570.0,0.492471]
[1751533740943,1.11436523,109580.0,109570.0,0.492471]
[1751533741942,1.10536012,109580.0,109570.0,0.492471]
[1751533742144,1.10536012,109580.0,109570.0,0.73982381]
[1751533742640,1.10536012,109580.0,109570.0,0.492471]
[1751533742844,1.10536012,109580.0,109570.0,0.73982381]
[1751533744044,1.16012868,109580.0,109570.0,0.73982381]
[1751533745244,1.16939653,109580.0,109570.0,0.73982381]
[1751533746538,1.16012868,109580.0,109570.0,0.73982381]
[1751533749341,1.10536012,109580.0,109570.0,0.73982381]
[1751533753150,1.93596012,109580.0,109570.0,0.73982381]
[1751533753350,1.93596012,109580.0,109570.0,0.492471]
[1751533754042,1.99073158,109580.0,109570.0,0.492471]
[1751533754447,1.98793158,109580.0,109570.0,0.492471]
[1751533755449,1.15733158,109580.0,109570.0,0.492471]
[1751533755649,1.98789158,109580.0,109570.0,0.492471]
[1751533759153,1.98789158,109580.0,109570.0,0.73982381]
[1751533759645,1.15733158,109580.0,109570.0,0.73982381]
[1751533759839,1.98785158,109580.0,109570.0,0.73982381]
[1751533761446,1.15733158,109580.0,109570.0,0.73982381]
[1751533761651,1.98785158,109580.0,109570.0,0.73982381]
[1751533762850,1.15733158,109580.0,109570.0,0.73982381]
[1751533763051,1.98781158,109580.0,109570.0,0.73982381]
[1751533763252,1.98781158,109580.0,109570.0,0.492471]
[1751533763441,1.98781158,109580.0,109570.0,0.73982381]
[1751533764552,1.15733158,109580.0,109570.0,0.73982381]
[1751533764753,1.98781158,109580.0,109570.0,0.73982381]
[1751533765258,1.49310596,109580.0,109570.0,0.73982381]
[1751533765453,1.98781158,109580.0,109570.0,0.492471]
[1751533767853,1.98777158,109580.0,109570.0,0.492471]
[1751533769046,1.15733158,109580.0,109570.0,0.492471]
[1751533769246,1.98777158,109580.0,109570.0,0.492471]
[1751533770754,1.15733158,109580.0,109570.0,0.492471]
[1751533770955,1.98777158,109580.0,109570.0,0.492471]
[1751533771156,0.66262596,109580.0,109570.0,0.73982381]
[1751533771363,0.76080731,109580.0,109570.0,0.83432381]
[1751533771554,0.57835281,109580.0,109570.0,0.83432381]
[1751533771946,0.24835281,109580.0,109570.0,0.83432381]
[1751533772153,0.57835281,109580.0,109570.0,0.83432381]
[1751533772353,0.331,109580.0,109570.0,1.14432381]
[1751533772555,0.001,109580.0,109570.0,1.14432381]
[1751533772859,0.001,109580.0,109570.0,1.18083297]
[1751533773054,0.001,109580.0,109570.0,1.42818578]
[1751533773255,0.01786288,109590.0,109580.0,0.1824544]
[1751533773456,0.09786288,109590.0,109580.0,1.32046002]
[1751533773761,0.08921757,109600.0,109590.0,0.1824377]
[1751533774057,0.44921757,109600.0,109590.0,1.21979967]
[1751533774266,0.43443271,109600.0,109590.0,1.18329051]
[1751533775162,0.43543271,109600.0,109590.0,1.15289051]
[1751533775353,0.43543271,109600.0,109590.0,1.18329051]
[1751533775853,0.14543271,109600.0,109590.0,1.18329051]
[1751533776554,0.14743271,109600.0,109590.0,1.18329051]
[1751533776755,0.07743271,109600.0,109590.0,1.18329051]
[1751533776954,0.25985381,109600.0,109590.0,1.18329051]
[1751533777253,0.07743271,109600.0,109590.0,1.18329051]
[1751533777462,0.07643271,109600.0,109590.0,1.19326396]
[1751533778756,0.07443271,109600.0,109590.0,1.19426396]
[1751533779464,0.25685381,109600.0,109590.0,1.19426396]
[1751533783766,0.07443271,109600.0,109590.0,1.19426396]
[1751533783965,0.25685381,109600.0,109590.0,1.19426396]
[1751533784564,0.07443271,109600.0,109590.0,1.19426396]
[1751533789468,0.07443271,109600.0,109590.0,0.94691115]
[1751533789771,0.25685381,109600.0,109590.0,1.19426396]
[1751533789961,0.07443271,109600.0,109590.0,1.19426396]
[1751533792572,0.25685381,109600.0,109590.0,1.19426396]
[1751533794659,0.25685381,109600.0,109590.0,0.94691115]
[1751533794864,0.25685381,109600.0,109590.0,1.19426396]
[1751533800077,0.25685381,109600.0,109590.0,0.94691115]
[1751533800272,0.25685381,109600.0,109590.0,1.19426396]
[1751533800976,0.32015381,109600.0,109590.0,1.19426396]
[1751533801376,0.32015381,109600.0,109590.0,1.23060326]
[1751533804279,0.56750662,109600.0,109590.0,1.23060326]
[1751533804579,0.65990662,109600.0,109590.0,1.70702326]
[1751533804774,0.41255381,109600.0,109590.0,1.70702326]
[1751533804974,0.65990662,109600.0,109590.0,1.70702326]